Cogmind - Beta 11.1 @@@ ROGUE MODE // 2022.09.19 @ 12:22:05 Player: Zirov Result: Destroyed by D-53 Grenadier with Mini Grenade Launcher Performance ------------- Evolutions (0) 0 Regions Visited (2) 400 Robots Destroyed (16) 80 Value Destroyed (436) 436 Prototype IDs (0) 0 Alien Tech Used (0) 0 Bonus (-36) -36 TOTAL SCORE: 880 Bonus ------- Friendly Fire -36 Cogmind --------- Core Integrity 0/250 Matter 195/300 Energy 73/250 System Corruption 1% Temperature Cool (0) Movement Walking (120) Location -10/Mines Parts ------- > --- POWER (1) -------- Ion Engine > --- PROPULSION (2) --- Improved Aluminum Leg Improved Aluminum Leg > --- UTILITY (2) ------ Improved Heat Sink Medium Storage Unit > --- WEAPON (2) ------- Mace > --- INVENTORY (10) --- Improved Aluminum Leg Heat Sink Large Storage Unit Tractor Beam EM Shotgun EM Shotgun Grenade Launcher Hammer Peak State ------------ > --- POWER ------------ Ion Engine > --- PROPULSION ------- Improved Aluminum Leg Improved Aluminum Leg > --- UTILITY ---------- Improved Heat Sink Medium Storage Unit > --- WEAPON ----------- EM Shotgun Mace > --- INVENTORY -------- Ion Engine Improved Aluminum Leg Improved Aluminum Leg Heat Sink Large Storage Unit Tractor Beam EM Shotgun Grenade Launcher Grenade Launcher Hammer [Rating: 14] Favorites ----------- Power Ion Engine Engine Ion Engine Propulsion Aluminum Leg Leg Aluminum Leg Utility Small Storage Unit Device Improved Heat Sink Storage Small Storage Unit Weapon EM Pulse Gun Energy Gun EM Pulse Gun Ballistic Gun Assault Rifle Launcher Grenade Launcher Impact Weapon Mace Build | -11 -10 -10 ------- Run | Scr Mat Min Slots Evolved . | . . . Power . | . . . Propulsion . | . . . Utility . | . . . Weapon . | . . . Parts Attached 34 | 7 22 5 Power 3 | 1 1 1 Engine 3 | 1 1 1 Core . | . . . Reactor . | . . . Propulsion 10 | 2 7 1 Treads . | . . . Leg 10 | 2 7 1 Wheel . | . . . Hover . | . . . Flight . | . . . Utility 8 | 1 7 . Device 6 | . 6 . Storage 2 | 1 1 . Processor . | . . . Hackware . | . . . Protection . | . . . Artifact . | . . . Weapon 13 | 3 7 3 Energy Gun 6 | 2 3 1 Energy Cannon . | . . . Ballistic Gun 2 | 1 1 . Ballistic Cannon . | . . . Launcher 2 | . 1 1 Special Weapon . | . . . Impact Weapon 3 | . 2 1 Slashing Weapon . | . . . Piercing Weapon . | . . . Special Melee Weapon . | . . . Unidentified Prototypes . | . . . Corrupted Parts 1 | . 1 . System Corruption 1 | . 1 . Parts Lost 6 | . 3 3 Power 2 | . 1 1 Propulsion 1 | . . 1 Utility . | . . . Weapon 3 | . 2 1 Highest Loss Streak 3 | . 2 3 To Critical Strikes . | . . . Average Slot Usage (%) 97 | . 97 100 Engine 13 | . 13 14 Leg 27 | . 27 28 Device 12 | . 11 14 Storage 14 | . 14 14 Energy Gun 12 | . 11 20 Ballistic Gun 5 | . 6 . Launcher 3 | . 3 3 Impact Weapon 5 | . 6 3 Naked Turns . | . . . Heaviest Build 22 | 14 21 22 Greatest Support 26 | 20 26 26 Greatest Overweight (x) 1 | . 1 . Average Overweight (x) . | . . . Largest Inventory Capacity 10 | 8 10 10 Average Capacity 8 | 7 8 10 Most Carried 10 | 1 10 10 Average Carried 7 | . 7 9 Final Capacity 10 | 8 10 10 Final Carried 10 | 1 10 8 Class Distribution -------------------- 55% | Scavenger-Mutant 44% | Mutant Dominant Class ---------------- Scavenger-Mutant | -10/Materials Mutant | -10/Mines Resources | -11 -10 -10 ----------- Run | Scr Mat Min Matter Collected 537 | 265 272 . Remotely 52 | . 52 . Salvage Created 777 | 96 651 30 Parts 27 | 3 24 . Haulers Intercepted . | . . . Recyclers Shooed 2 | 2 . . Parts Field Recycled . | . . . Retrieved Matter . | . . . Parts Self-Destructed . | . . . Prevented . | . . . Kills | -11 -10 -10 ------- Run | Scr Mat Min Combat Hostiles Destroyed 16 | . 10 6 Guns 7 | . 7 . AOE 8 | . 2 6 Classes Destroyed 5 | 2 2 1 Tunneler 1 | 1 . . Recycler 4 | 1 3 . Watcher 1 | . 1 . Grunt 10 | . 10 . Assembled 6 | . . 6 Best Kill Streak 8 | 2 8 6 Combat Bots Only 6 | . 6 6 Max Kills in Single Turn 2 | 1 2 2 Gunslinging . | . . . Exploded 2 | . 1 2 Melee . | . . . Uniques/NPCs Destroyed . | . . . Combat | -11 -10 -10 -------- Run | Scr Mat Min Damage Taken 1122 | . 698 424 Core 264 | . 154 110 Absorbed by Shields . | . . . Core Remaining (%) 100 | 100 . . Volleys Fired 60 | 3 47 10 Largest 2 | 2 2 2 Hottest 90 | 80 80 90 Shots Fired 108 | 6 89 13 Gun 96 | 6 84 6 Cannon . | . . . Launcher 12 | . 5 7 Special . | . . . Kinetic 34 | . 34 . Thermal . | . . . Explosive 12 | . 5 7 Electromagnetic 62 | 6 50 6 Robot Hit Streak 15 | 2 15 5 Robot Miss Streak 4 | 1 4 4 Penetration Max . | . . . Secondary Targets 1 | . 1 . Max Gunslinging Chain 1 | . 1 . Shots Hit Robots 76 | 4 63 9 Core Hits 43 | 2 23 18 Critical Kills . | . . . Critical Parts Destroyed . | . . . Critical Strikes . | . . . Melee Attacks 7 | . 6 1 Impact 7 | . 6 1 Slashing . | . . . Piercing . | . . . Sneak Attacks 2 | . 2 . Combat Hostiles . | . . . Follow-up Attacks . | . . . Damage Inflicted 1780 | 57 1289 434 Guns 904 | 57 815 32 Cannons . | . . . Explosions 734 | . 332 402 Melee 142 | . 142 . Ramming . | . . . Kinetic 324 | . 324 . Thermal 206 | . 206 . Explosive 528 | . 126 402 Electromagnetic 580 | 57 491 32 Impact 142 | . 142 . Slashing . | . . . Piercing . | . . . Highest Corruption 1 | . 1 1 Average Corruption 1 | . 1 1 Corruption Purged . | . . . Corruption Blocked . | . . . Effects 8 | . 7 1 Message Errors 1 | . 1 . Matter Fused 3 | . 3 . Energy Discharges 1 | . 1 . Data Loss (minor) 3 | . 2 1 Overload Shots . | . . . Overflow Damage 82 | . 58 24 Projectiles . | . . . Explosions 40 | . 16 24 Melee 42 | . 42 . Knockbacks 1 | . 1 . Impact 1 | . 1 . Kinetic . | . . . Secondary . | . . . Self-Inflicted Damage 185 | . 125 60 Shots 5 | . 3 2 Rammed . | . . . Targets Rammed 1 | 1 . . Kicked 1 | 1 . . Crushed . | . . . Highest Temperature 243 | 36 243 . Average Temperature 107 | 18 120 . Received Heat Transfer 318 | . 318 . Effects 1 | . 1 . Energy Bleed 1 | . 1 . Siege Activations . | . . . Robots Corrupted 1 | . 1 . Combat Hostiles 1 | . 1 . Parts Fried 4 | . 4 . Impact Corruptions 3 | . 3 . Robots Melted . | . . . Combat Hostiles . | . . . Parts Melted . | . . . Heat Transferred 300 | . 300 . Parts Sabotaged . | . . . Parts Stolen . | . . . Parts Stripped . | . . . Power Chain Reactions 2 | . 2 . Missiles Intercepted . | . . . Alert | -11 -10 -10 ------- Run | Scr Mat Min Peak Influence 288 | 10 288 142 Initial 49 | . 6 49 Average 145 | 2 165 69 Maximum Alert Level 1 | . 1 . Low Security (%) 64 | 100 58 100 Level 1 35 | . 41 . Level 2 . | . . . Level 3 . | . . . Level 4 . | . . . Level 5 . | . . . High Security . | . . . Max Security . | . . . Squads Dispatched 5 | . 5 . Investigation 2 | . 2 . Extermination . | . . . Reinforcement 3 | . 3 . Assault . | . . . Garrison . | . . . Intercept . | . . . Searches Triggered . | . . . Construction Impeded . | . . . Haulers Reinforced . | . . . Active Scanning Responses . | . . . Cargo Convoy Interrupts . | . . . Stealth | -11 -10 -10 --------- Run | Scr Mat Min Distress Signals 2 | . 2 . Communications Jammed . | . . . Distress Signals . | . . . Times Spotted 36 | . 22 14 Peak Tracking Total 6 | . 6 6 Tactical Retreats 1 | . 1 . Traps | -11 -10 -10 ------- Run | Scr Mat Min Traps Triggered 2 | . 2 . Indirectly . | . . . Trap Hack Attempts . | . . . Triggered . | . . . Disarmed . | . . . Reprogrammed . | . . . Reused . | . . . Traps Extracted . | . . . Installed . | . . . Triggered . | . . . Machines | -11 -10 -10 ---------- Run | Scr Mat Min Machines Disabled 1 | . 1 . Max in Single Turn 1 | . 1 . Machines Sabotaged . | . . . Garrisons Compromised . | . . . Overloaded Fab Kills . | . . . Hacking | -11 -10 -10 --------- Run | Scr Mat Min Machines Accessed 5 | . 5 . Terminals 2 | . 2 . Fabricators . | . . . Repair Stations 1 | . 1 . Recycling Units 2 | . 2 . Scanalyzers . | . . . Garrison Access . | . . . Total Hacks 15 | . 15 . Successful 9 | . 9 . Failed 6 | . 6 . Catastrophic . | . . . Database Lockouts . | . . . Manual 2 | . 2 . Terminals 6 | . 6 . Fabricators . | . . . Repair Stations 4 | . 4 . Recycling Units 5 | . 5 . Scanalyzers . | . . . Garrison Access . | . . . Terminal Hacks 3 | . 3 . Robot Analysis 1 | . 1 . Alert Level 1 | . 1 . Locate Traps 1 | . 1 . Fabricator Hacks . | . . . Repair Station Hacks 1 | . 1 . Scan Component 1 | . 1 . Recycling Unit Hacks 5 | . 5 . Process 2 | . 2 . Report Inventory 2 | . 2 . Retrieve Matter 1 | . 1 . Scanalyzer . | . . . Garrison Access Hacks . | . . . Unauthorized Hacks . | . . . Terminals . | . . . Fabricators . | . . . Repair Stations . | . . . Recycling Units . | . . . Scanalyzers . | . . . Garrison Access . | . . . Data Cores Recovered . | . . . Used . | . . . Hacking Detections 4 | . 4 . Full Trace Events 1 | . 1 . Feedback Events . | . . . Feedback Blocked . | . . . Robot Schematics Acquired . | . . . Robots Built . | . . . Authchips . | . . . Time . | . . . Total Robot Build Rating . | . . . Part Schematics Acquired . | . . . Parts Built . | . . . Authchips . | . . . Time . | . . . Total Part Build Rating . | . . . Parts Repaired . | . . . Time . | . . . Parts Recycled . | . . . Recycled Matter 229 | . 229 . Retrieved Matter 319 | . 319 . Retrieved Components . | . . . Parts Scanalyzed . | . . . Part Schematics Acquired . | . . . Parts Damaged . | . . . Bothacking | -11 -10 -10 ------------ Run | Scr Mat Min Used RIF Installer . | . . . Robots Hacked . | . . . Non-combat . | . . . Combat . | . . . Robot Hacks Applied . | . . . Relay Couplers Released . | . . . Fabnet Peak Effective % . | . . . Robots Rewired . | . . . Allies Hacked . | . . . Hacks Repelled . | . . . Allies | -11 -10 -10 -------- Run | Scr Mat Min Total Allies 2 | . . 2 Largest Group 2 | . . 2 Highest-Rated Group 45 | . . 45 Highest-Rated Ally 31 | . . 31 Total Orders . | . . . Ally Attacks 10 | . . 10 Total Damage 147 | . . 147 Kills 3 | . . 3 Allies Corrupted . | . . . Allies Melted . | . . . Intel | -11 -10 -10 ------- Run | Scr Mat Min Robot Analysis Total 1 | . 1 . Derelict Logs Recovered . | . . . Drone Launches . | . . . Drone Recoveries . | . . . Exploration | -11 -10 -10 ------------- Run | Scr Mat Min Turns Passed 1084 | 71 905 108 Spaces Moved 629 | 44 522 63 Core 4 | 4 . . Treads . | . . . Legs 625 | 40 522 63 Wheels . | . . . Hover . | . . . Flight . | . . . Fastest Speed 50 | 50 120 120 Average Speed 127 | 113 129 120 Slowest Speed 190 | 120 190 120 Overloaded Moves . | . . . Propulsion Burnouts . | . . . Robots Hopped . | . . . Cave-ins Triggered . | . . . Exploration Rate (%) 35 | 4 76 26 Regions Visited 2 Branch Regions 1 Pre-discovered Areas . | . . . Known Exits Taken . | . . . Unknown Exits Taken 2 | 1 1 . Scrap Searched . | . . . Spaces Dug . | . . . Terrain Destroyed 87 | . 30 57 Melee . | . . . Projectile . | . . . AOE 87 | . 30 57 Terrain Rammed . | . . . Walls Destroyed . | . . . Machines Disabled . | . . . Actions | -11 -10 -10 --------- Run | Scr Mat Min Total 786 | 55 652 79 Wait 34 | . 34 . Move 627 | 43 521 63 Hop . | . . . Pick Up 12 | 1 11 . Fast Attach 12 | 6 6 . Attach 4 | . 2 2 Detach . | . . . Swap 18 | 1 14 3 Drop 11 | . 11 . Fire 60 | 3 47 10 Melee 7 | . 6 1 Ram . | . . . Kick 1 | 1 . . Crush . | . . . Escape Stasis . | . . . Rewire . | . . . Trap . | . . . Miscellaneous . | . . . Route ------- -11/Scrapyard -10/Materials (discovered 3 exits: [*Mat] / [*Min x2]) -10/Mines History --------- Turn | Location | Event 3 | -11/Scrapyard | Discovered new exit (range 15) 72 | -11/Scrapyard | Entered Materials 285 | -10/Materials | Core integrity fell below 50% 419 | -10/Materials | Discovered new exit (range 15) 493 | -10/Materials | Build established: Scavenger-Mutant 692 | -10/Materials | Discovered new exit (range 16) 964 | -10/Materials | Discovered new exit (range 12) 977 | -10/Materials | Entered Mines 1020 | -10/Mines | Assembled infested the area 1069 | -10/Mines | Core integrity fell below 20% 1085 | -10/Mines | Destroyed by D-53 Grenadier with Mini Grenade Launcher Last Messages --------------- 01060_ as-49844 destroyed. 01060_ as-34268 destroyed. 01062_ as-11306 destroyed. 01063_ as-52256 destroyed. 01065_ The unstable cave ceiling collapses. 01065_ as-38701 destroyed. 01067_ The unstable cave ceiling collapses. 01068_ PV-DO7(g) destroyed. 01071_ The unstable cave ceiling collapses. 01073_ as-09090 destroyed. 01075_ The unstable cave ceiling collapses. 01075_ as-65018 destroyed. 01076_ The unstable cave ceiling collapses. 01078_ as-25811 destroyed. 01081_ as-41143 destroyed. 01081_ Grenade Launcher destroyed. 01081_ Destroyed Grenade Launcher. 01081_ Ion Engine destroyed. 01081_ Destroyed Ion Engine. 01083_ Imp. Aluminum Leg destroyed. Map ----- +----------------------------------------------------+ | ????????????????????????????# #####???? | | ????????????????????????????# #???????? | | ?????????????? ??????????# #???????? | | ??????????????? ??????# #???????? | | ???????????????????# ### #???????? | | ???????????????????# #???????? | | ???????????????????# #### #???????? | | ????????????????????#???????# #???????? | | ????????????????????# ##### ###?????? | | ????????????????????# ##????? | | ????????????????????# ##???? | | ????????????????????## ##### #???? | | ?????????????????????###????## #???? | | ?????????????????????????#### ##???? | | ??????????## ???????????## ##????? | | ???????? ??????????## #?????? | | ????????? ????????## #?????? | | ?????????# % ???????## ##?????? | | ?????????# ??# ### ####??????? | | ?????????# ??# ##?????????? | | ?????????# ??##### #??????????? | | ?????????# ?????## #??????????? | | ????????# ?####?## ###?????????? | | ???????## # ### #?????????? | | ???????# # ## #?????????? | | ??????### ## @ #?????????? | | ??????# # ## #?????????? | | ?????# d #?????????? | | ?????# #?????????? | | ?????# ## ###?????????? | | ?????## ######???????????? | | ??????# # % # ##????????????????? | | ?????# ??## ###?????????????????? | | ?????????# ##???????????????????? | | ???????? ###?????????????????????? | | ??????? ##????????????????????????? | | ??????? ##??????????????????????????? | | ?????? ????????????????????????????? | | ?????? ?????????????????????????????? | | ??????????????????????????????????????? | | ??????????????????????????????????????? | | ??????????????????????????????????????? | | ??????????????????????????????????????? | | ??????????????????????????????????????? | | ??????????????????????????????????????? | | ??????????????????????????????????????? | | ??????????????????????????????????????? | | ??????????????????????????????????????? | | ??????????????????????????????????????? | | ??????????????????????????????????????? | +----------------------------------------------------+ Best States ------------- Heat Dissipation 39 Energy Generation 10 Energy Capacity 250 Matter Stores 300 Matter Capacity 300 Sight Range 16 Terrain Scan Density 10 Evasion (%) 55 Item Schematics ----------------- None Robot Schematics ------------------ None Fabricated ------------ Nothing Alien Tech Used ----------------- None Achievements -------------- None Challenges ------------ None Game ------ Seed BottomlessAlphaScreen Manual? 0 Play Time 00:17:59 Cumulative 8.9 hours Start 2022.09.19 @ 12:05:55 End 2022.09.19 @ 12:22:05 Sessions 1 Manual Loads 0 Difficulty Rogue Special Mode None Game No. 9 Rogue 9 Adventurer 0 Explorer 0 Win Type - Total 0 Types 0/0/0/0/0/0/0/0/0 Lore% 8 Gallery% 16 Achievement% 17 Wizard Run 0 Options --------- ASCII 1 Keyboard 1 Movement Numpad Keybinds 0 Fullscreen 1 Font 18/SmallcapsGlow Map View 76x50 Tactical HUD 1 Map Filters NONE Filters NONE Steam 1 RUN: 72ed911c-fc49-41b8-8748-e2ff03ad6c5b